[Event "*** Titled Tuesday Blitz"]
[Site "Chess.com"]
[Date "2020.12.01"]
[Round "8"]
[White "CoachHakia"]
[Black "Joel1285"]
[Result "1-0"]
[WhiteElo "2145"]
[BlackElo "1833"]
[TimeControl "180+1"]
[EndTime "11:25:34 PST"]
[Termination "CoachHakia won on time"]

1. d4 {[%clk 0:03:00.9]} 1... Nf6 {[%clk 0:02:58.7]} 2. Bg5 {[%clk 0:03:00.1]}
2... c5 {[%clk 0:02:53.3]} 3. Bxf6 {[%clk 0:02:59.8]} 3... gxf6 {[%clk
0:02:54.2]} 4. d5 {[%clk 0:03:00]} 4... Qb6 {[%clk 0:02:52.2]} 5. Qc1 {[%clk
0:02:57]} 5... Bg7 {[%clk 0:02:51.7]} 6. c4 {[%clk 0:02:56.9]} 6... f5 {[%clk
0:02:51.7]} 7. Nc3 {[%clk 0:02:56.8]} 7... d6 {[%clk 0:02:51.3]} 8. e3 {[%clk
0:02:56.6]} 8... e6 {[%clk 0:02:51.2]} 9. Bd3 {[%clk 0:02:51.2]} 9... O-O {[%clk
0:02:50.5]} 10. Nge2 {[%clk 0:02:36.5]} 10... Na6 {[%clk 0:02:44.7]} 11. a3
{[%clk 0:02:35.9]} 11... Nc7 {[%clk 0:02:25.5]} 12. Qc2 {[%clk 0:02:35.5]} 12...
Bd7 {[%clk 0:02:18.1]} 13. Rg1 {[%clk 0:02:28.1]} 13... h6 {[%clk 0:01:59.2]}
14. g4 {[%clk 0:02:27.4]} 14... fxg4 {[%clk 0:02:00.1]} 15. Rxg4 {[%clk
0:02:26.2]} 15... f5 {[%clk 0:01:55.5]} 16. Rg2 {[%clk 0:02:11.4]} 16... e5
{[%clk 0:01:55.6]} 17. O-O-O {[%clk 0:01:53.8]} 17... Rf7 {[%clk 0:01:47.2]} 18.
Rdg1 {[%clk 0:01:51.4]} 18... Raf8 {[%clk 0:01:47.6]} 19. f4 {[%clk 0:01:40.5]}
19... e4 {[%clk 0:01:44.8]} 20. Nxe4 {[%clk 0:01:39.5]} 20... fxe4 {[%clk
0:01:45.7]} 21. Bxe4 {[%clk 0:01:40.4]} 21... Ne8 {[%clk 0:01:39.6]} 22. Bg6
{[%clk 0:01:30.1]} 22... Re7 {[%clk 0:01:02.9]} 23. Bxe8 {[%clk 0:01:20.4]}
23... Bxe8 {[%clk 0:00:29.8]} 24. f5 {[%clk 0:01:01.3]} 24... Rf6 {[%clk
0:00:02.6]} 25. Nf4 {[%clk 0:00:58.4]} 1-0

[Event "*** Titled Tuesday Blitz"]
[Site "Chess.com"]
[Date "2020.12.01"]
[Round "8"]
[White "Kavyev_Ruslan"]
[Black "sopo-tereladze"]
[Result "1-0"]
[WhiteElo "2522"]
[BlackElo "2313"]
[TimeControl "180+1"]
[EndTime "11:25:36 PST"]
[Termination "Kavyev_Ruslan won on time"]

1. d4 {[%clk 0:03:00.8]} 1... Nf6 {[%clk 0:02:59.4]} 2. c4 {[%clk 0:03:00.7]}
2... e6 {[%clk 0:02:59.9]} 3. Nf3 {[%clk 0:02:59.6]} 3... d5 {[%clk 0:02:57.2]}
4. g3 {[%clk 0:02:59.2]} 4... Be7 {[%clk 0:02:57]} 5. Bg2 {[%clk 0:02:59.7]}
5... O-O {[%clk 0:02:57.4]} 6. Nc3 {[%clk 0:03:00.6]} 6... dxc4 {[%clk
0:02:58.1]} 7. Ne5 {[%clk 0:03:01]} 7... Nc6 {[%clk 0:02:55.9]} 8. Bxc6 {[%clk
0:03:01.3]} 8... bxc6 {[%clk 0:02:56.8]} 9. Nxc6 {[%clk 0:03:02.2]} 9... Qe8
{[%clk 0:02:55.5]} 10. Nxe7+ {[%clk 0:03:02.8]} 10... Qxe7 {[%clk 0:02:56.4]}
11. Qa4 {[%clk 0:03:03.7]} 11... Bb7 {[%clk 0:02:46.9]} 12. O-O {[%clk
0:03:02.7]} 12... e5 {[%clk 0:02:45.5]} 13. dxe5 {[%clk 0:03:00.5]} 13... Qxe5
{[%clk 0:02:46.4]} 14. Qxc4 {[%clk 0:02:52.6]} 14... Qh5 {[%clk 0:02:36.7]} 15.
f3 {[%clk 0:02:48.4]} 15... Rfe8 {[%clk 0:02:28.9]} 16. e4 {[%clk 0:02:45.5]}
16... Rad8 {[%clk 0:02:23.8]} 17. Be3 {[%clk 0:02:42.5]} 17... Nd7 {[%clk
0:02:17.1]} 18. Rad1 {[%clk 0:02:32.2]} 18... h6 {[%clk 0:00:57.6]} 19. Qxc7
{[%clk 0:02:25.5]} 19... Bc8 {[%clk 0:00:57.4]} 20. Nd5 {[%clk 0:02:19]} 20...
Kh7 {[%clk 0:00:48.7]} 21. Kg2 {[%clk 0:02:08.3]} 21... Ba6 {[%clk 0:00:38]} 22.
Rf2 {[%clk 0:02:05.6]} 22... Qe5 {[%clk 0:00:27.4]} 23. Qxa7 {[%clk 0:02:02.7]}
23... Bb5 {[%clk 0:00:23.3]} 24. Nc7 {[%clk 0:01:59.3]} 24... Nf6 {[%clk
0:00:17.7]} 25. Rxd8 {[%clk 0:01:52.8]} 25... Rxd8 {[%clk 0:00:18.6]} 26. Bf4
{[%clk 0:01:48.4]} 26... Qh5 {[%clk 0:00:15.7]} 27. Nxb5 {[%clk 0:01:40.1]}
27... Qxb5 {[%clk 0:00:15.7]} 28. Qxf7 {[%clk 0:01:38.6]} 28... Rd1 {[%clk
0:00:13.7]} 29. e5 {[%clk 0:01:38.7]} 29... Nd5 {[%clk 0:00:10]} 30. Qf5+ {[%clk
0:01:38.6]} 30... Kh8 {[%clk 0:00:09.5]} 31. Qf8+ {[%clk 0:01:35.1]} 31... Kh7
{[%clk 0:00:09]} 32. e6 {[%clk 0:01:35.7]} 32... Qa5 {[%clk 0:00:04]} 33. e7
{[%clk 0:01:25.3]} 33... Qe1 {[%clk 0:00:02.8]} 34. e8=Q {[%clk 0:01:24.3]}
34... Qh1+ {[%clk 0:00:01.2]} 35. Kh3 {[%clk 0:01:24.4]} 1-0

[Event "*** Titled Tuesday Blitz"]
[Site "Chess.com"]
[Date "2020.12.01"]
[Round "8"]
[White "DinaBelenkaya"]
[Black "Enriquack"]
[Result "1-0"]
[WhiteElo "2395"]
[BlackElo "2284"]
[TimeControl "180+1"]
[EndTime "11:25:38 PST"]
[Termination "DinaBelenkaya won by resignation"]

1. e4 {[%clk 0:03:00.9]} 1... c5 {[%clk 0:02:59.3]} 2. Nc3 {[%clk 0:03:00.2]}
2... e6 {[%clk 0:02:54.1]} 3. g3 {[%clk 0:02:59.8]} 3... Nc6 {[%clk 0:02:52.4]}
4. Bg2 {[%clk 0:03:00.2]} 4... a6 {[%clk 0:02:52.5]} 5. Nf3 {[%clk 0:03:00.2]}
5... b6 {[%clk 0:02:52.7]} 6. O-O {[%clk 0:02:59.1]} 6... Bb7 {[%clk 0:02:52.9]}
7. d4 {[%clk 0:02:58.7]} 7... cxd4 {[%clk 0:02:47.8]} 8. Nxd4 {[%clk 0:02:59.6]}
8... Nge7 {[%clk 0:02:46.8]} 9. e5 {[%clk 0:02:31.7]} 9... Qc7 {[%clk
0:02:21.8]} 10. Bf4 {[%clk 0:02:13.2]} 10... Ng6 {[%clk 0:02:15.8]} 11. Re1
{[%clk 0:01:38.4]} 11... Nxf4 {[%clk 0:01:51.9]} 12. gxf4 {[%clk 0:01:38]} 12...
Nxd4 {[%clk 0:01:50.5]} 13. Qxd4 {[%clk 0:01:37.4]} 13... Bxg2 {[%clk 0:01:50]}
14. Kxg2 {[%clk 0:01:34.4]} 14... d6 {[%clk 0:01:45.2]} 15. Rad1 {[%clk
0:01:18.3]} 15... dxe5 {[%clk 0:01:43.6]} 16. fxe5 {[%clk 0:01:15.8]} 16... Bc5
{[%clk 0:01:34.5]} 17. Qg4 {[%clk 0:01:06.3]} 17... O-O {[%clk 0:01:32.6]} 18.
Rd3 {[%clk 0:00:53.1]} 18... Rad8 {[%clk 0:01:09.5]} 19. Rg3 {[%clk 0:00:49]}
19... g6 {[%clk 0:01:09.5]} 20. Qh4 {[%clk 0:00:44.5]} 20... Be7 {[%clk
0:00:51.2]} 21. Qh6 {[%clk 0:00:43]} 21... Rd4 {[%clk 0:00:35.5]} 22. Rh3 {[%clk
0:00:36.1]} 22... Qb7+ {[%clk 0:00:28.1]} 23. Ne4 {[%clk 0:00:31.5]} 1-0

[Event "*** Titled Tuesday Blitz"]
[Site "Chess.com"]
[Date "2020.12.01"]
[Round "8"]
[White "Kretov_Evgenij"]
[Black "kingofthenil"]
[Result "1-0"]
[WhiteElo "2501"]
[BlackElo "2723"]
[TimeControl "180+1"]
[EndTime "11:25:41 PST"]
[Termination "Kretov_Evgenij won by resignation"]

1. d4 {[%clk 0:03:00.9]} 1... g6 {[%clk 0:03:00.9]} 2. c4 {[%clk 0:03:00.6]}
2... Bg7 {[%clk 0:03:00.4]} 3. Nc3 {[%clk 0:03:00.9]} 3... Nh6 {[%clk
0:02:56.4]} 4. e4 {[%clk 0:03:00.4]} 4... O-O {[%clk 0:02:55.8]} 5. Be2 {[%clk
0:03:00.2]} 5... c5 {[%clk 0:02:54]} 6. Nf3 {[%clk 0:03:00.1]} 6... Nc6 {[%clk
0:02:48.8]} 7. d5 {[%clk 0:02:59.7]} 7... Nd4 {[%clk 0:02:49.2]} 8. Be3 {[%clk
0:02:59.2]} 8... Ng4 {[%clk 0:02:45.2]} 9. Nxd4 {[%clk 0:02:52]} 9... Nxe3
{[%clk 0:02:42.6]} 10. fxe3 {[%clk 0:02:51.8]} 10... cxd4 {[%clk 0:02:43.5]} 11.
exd4 {[%clk 0:02:51.8]} 11... Qb6 {[%clk 0:02:44.4]} 12. Na4 {[%clk 0:02:46.7]}
12... Qxd4 {[%clk 0:02:40.3]} 13. Qxd4 {[%clk 0:02:43.9]} 13... Bxd4 {[%clk
0:02:41.2]} 14. Rd1 {[%clk 0:02:43.1]} 14... Be5 {[%clk 0:02:40.2]} 15. g3
{[%clk 0:02:32.7]} 15... d6 {[%clk 0:02:40.2]} 16. Rd3 {[%clk 0:02:23.9]} 16...
Bd7 {[%clk 0:02:39.6]} 17. Nc3 {[%clk 0:02:23.4]} 17... Rac8 {[%clk 0:02:38.8]}
18. b3 {[%clk 0:02:15.2]} 18... b5 {[%clk 0:02:38.5]} 19. Nxb5 {[%clk
0:02:10.3]} 19... Bxb5 {[%clk 0:02:38.9]} 20. cxb5 {[%clk 0:02:10.3]} 20... Rc2
{[%clk 0:02:39.8]} 21. a4 {[%clk 0:02:02.5]} 21... Rb2 {[%clk 0:02:37.2]} 22.
Kf2 {[%clk 0:02:01.3]} 22... f5 {[%clk 0:02:37.2]} 23. exf5 {[%clk 0:01:57.6]}
23... gxf5 {[%clk 0:02:38.1]} 24. Rc1 {[%clk 0:01:50.4]} 24... f4 {[%clk
0:02:38.5]} 25. g4 {[%clk 0:01:43.4]} 25... Rf6 {[%clk 0:02:32.7]} 26. h4 {[%clk
0:01:42]} 26... h6 {[%clk 0:02:31.8]} 27. Kf3 {[%clk 0:01:40.8]} 27... Rf8
{[%clk 0:02:29.3]} 28. Rc7 {[%clk 0:01:31.2]} 28... Kf7 {[%clk 0:02:29.7]} 29.
Rxa7 {[%clk 0:01:30.1]} 29... Rc2 {[%clk 0:02:16.2]} 30. b6 {[%clk 0:01:28.5]}
30... Rb8 {[%clk 0:02:15.9]} 31. a5 {[%clk 0:01:27.4]} 31... Rc5 {[%clk
0:02:06.5]} 32. b7 {[%clk 0:01:26.8]} 32... e6 {[%clk 0:02:00.4]} 33. a6 {[%clk
0:01:25.8]} 33... Rb5 {[%clk 0:00:50.3]} 34. Ra8 {[%clk 0:01:24.3]} 34... R8xb7
{[%clk 0:00:50.7]} 35. axb7 {[%clk 0:01:24.3]} 35... Rxb7 {[%clk 0:00:51.6]} 36.
g5 {[%clk 0:01:15.8]} 36... hxg5 {[%clk 0:00:50]} 37. hxg5 {[%clk 0:01:16]}
37... exd5 {[%clk 0:00:49.6]} 38. Kg4 {[%clk 0:01:14.1]} 38... Rb4 {[%clk
0:00:48.5]} 39. Kf5 {[%clk 0:01:12.5]} 39... Kg7 {[%clk 0:00:46.5]} 40. Ra7+
{[%clk 0:01:12]} 40... Kf8 {[%clk 0:00:46.6]} 41. g6 {[%clk 0:01:10.9]} 41... f3
{[%clk 0:00:44.7]} 42. Rxf3 {[%clk 0:01:10.6]} 42... Kg8 {[%clk 0:00:44.3]} 43.
Ke6 {[%clk 0:01:00.1]} 1-0

[Event "*** Titled Tuesday Blitz"]
[Site "Chess.com"]
[Date "2020.12.01"]
[Round "8"]
[White "Michaelson_11"]
[Black "hleol"]
[Result "0-1"]
[WhiteElo "2166"]
[BlackElo "2331"]
[TimeControl "180+1"]
[EndTime "11:25:42 PST"]
[Termination "hleol won by checkmate"]

1. e4 {[%clk 0:03:00.9]} 1... c6 {[%clk 0:02:58.8]} 2. d4 {[%clk 0:02:59.5]}
2... d5 {[%clk 0:02:57.8]} 3. Nd2 {[%clk 0:02:59.9]} 3... dxe4 {[%clk
0:02:57.3]} 4. Nxe4 {[%clk 0:03:00.8]} 4... Bf5 {[%clk 0:02:57.7]} 5. Ng3 {[%clk
0:03:00.8]} 5... Bg6 {[%clk 0:02:58.3]} 6. Nf3 {[%clk 0:03:01.5]} 6... Nd7
{[%clk 0:02:57.3]} 7. h4 {[%clk 0:03:02.1]} 7... h6 {[%clk 0:02:56.7]} 8. h5
{[%clk 0:03:02.7]} 8... Bh7 {[%clk 0:02:57]} 9. Bd3 {[%clk 0:03:03.4]} 9... Bxd3
{[%clk 0:02:56]} 10. Qxd3 {[%clk 0:03:04.3]} 10... Qc7 {[%clk 0:02:56.2]} 11.
Bd2 {[%clk 0:03:02.8]} 11... Ngf6 {[%clk 0:02:55.8]} 12. O-O-O {[%clk
0:03:00.6]} 12... e6 {[%clk 0:02:56.4]} 13. Ne4 {[%clk 0:03:00.5]} 13... O-O-O
{[%clk 0:02:56.6]} 14. c4 {[%clk 0:02:59.5]} 14... c5 {[%clk 0:02:53.8]} 15. Bc3
{[%clk 0:02:52.9]} 15... Nxe4 {[%clk 0:02:47.4]} 16. Qxe4 {[%clk 0:02:53.8]}
16... Nf6 {[%clk 0:02:43]} 17. Qe2 {[%clk 0:02:44.1]} 17... cxd4 {[%clk
0:02:40.1]} 18. Nxd4 {[%clk 0:02:45]} 18... a6 {[%clk 0:02:40]} 19. Kb1 {[%clk
0:02:39.8]} 19... Bd6 {[%clk 0:02:38.2]} 20. f3 {[%clk 0:02:35.6]} 20... Rd7
{[%clk 0:02:36.4]} 21. g4 {[%clk 0:02:33.1]} 21... Rhd8 {[%clk 0:02:36.6]} 22.
Nb3 {[%clk 0:02:29.2]} 22... Kb8 {[%clk 0:02:10.1]} 23. Qf2 {[%clk 0:02:18.8]}
23... Bf4 {[%clk 0:01:46.7]} 24. Rxd7 {[%clk 0:01:46]} 24... Nxd7 {[%clk
0:01:46.7]} 25. Ba5 {[%clk 0:01:44]} 25... b6 {[%clk 0:01:46.1]} 26. Bc3 {[%clk
0:01:43.5]} 26... Ne5 {[%clk 0:01:45.4]} 27. c5 {[%clk 0:01:41.8]} 27... Nd3
{[%clk 0:01:40.4]} 28. cxb6 {[%clk 0:01:33.8]} 28... Qxc3 {[%clk 0:01:37.5]} 29.
bxc3 {[%clk 0:01:31]} 29... Nxf2 {[%clk 0:01:37.3]} 30. Rf1 {[%clk 0:01:30.2]}
30... Rd1+ {[%clk 0:01:32.3]} 31. Rxd1 {[%clk 0:01:28.8]} 31... Nxd1 {[%clk
0:01:33.2]} 32. Kc2 {[%clk 0:01:29.2]} 32... Ne3+ {[%clk 0:01:32.6]} 33. Kd3
{[%clk 0:01:28.8]} 33... Nd5 {[%clk 0:01:32.8]} 34. Ke4 {[%clk 0:01:25]} 34...
Bh2 {[%clk 0:01:31.1]} 35. Nc5 {[%clk 0:01:10.5]} 35... Nxb6 {[%clk 0:01:29.6]}
36. Nxa6+ {[%clk 0:01:10.7]} 36... Kc8 {[%clk 0:01:26.5]} 37. Nc5 {[%clk
0:01:04.4]} 37... Nd5 {[%clk 0:01:26.2]} 38. c4 {[%clk 0:00:53.8]} 38... Nc3+
{[%clk 0:01:25.1]} 39. Kd4 {[%clk 0:00:48.3]} 39... Nxa2 {[%clk 0:01:26]} 40.
Nd3 {[%clk 0:00:48.1]} 40... Bg1+ {[%clk 0:01:23]} 41. Ke5 {[%clk 0:00:48.4]}
41... Kd7 {[%clk 0:01:21.4]} 42. f4 {[%clk 0:00:46.1]} 42... Nc3 {[%clk
0:01:18.4]} 43. g5 {[%clk 0:00:39.3]} 43... Ke7 {[%clk 0:01:14.1]} 44. c5 {[%clk
0:00:33]} 44... f6+ {[%clk 0:01:13.2]} 45. gxf6+ {[%clk 0:00:30.6]} 45... gxf6#
{[%clk 0:01:14.1]} 0-1

[Event "*** Titled Tuesday Blitz"]
[Site "Chess.com"]
[Date "2020.12.01"]
[Round "8"]
[White "Nadtkins"]
[Black "KetiGrant"]
[Result "1-0"]
[WhiteElo "2512"]
[BlackElo "2371"]
[TimeControl "180+1"]
[EndTime "11:25:44 PST"]
[Termination "Nadtkins won by resignation"]

1. Nf3 {[%clk 0:03:00.9]} 1... Nf6 {[%clk 0:02:59]} 2. g3 {[%clk 0:03:00.9]}
2... g6 {[%clk 0:02:59.4]} 3. b3 {[%clk 0:03:01.4]} 3... Bg7 {[%clk 0:03:00.3]}
4. Bb2 {[%clk 0:03:02.3]} 4... O-O {[%clk 0:03:00.1]} 5. Bg2 {[%clk 0:03:02.8]}
5... c5 {[%clk 0:02:59.5]} 6. c4 {[%clk 0:03:02.6]} 6... d5 {[%clk 0:02:54.3]}
7. cxd5 {[%clk 0:03:02.2]} 7... Nxd5 {[%clk 0:02:54.3]} 8. Bxg7 {[%clk
0:03:03.1]} 8... Kxg7 {[%clk 0:02:54.8]} 9. Qc1 {[%clk 0:03:04]} 9... b6 {[%clk
0:02:44]} 10. O-O {[%clk 0:03:02.7]} 10... Bb7 {[%clk 0:02:43.4]} 11. Rd1 {[%clk
0:02:59.9]} 11... Nd7 {[%clk 0:02:33.8]} 12. Qb2+ {[%clk 0:02:58.2]} 12... N5f6
{[%clk 0:02:31.7]} 13. d4 {[%clk 0:02:51.6]} 13... cxd4 {[%clk 0:02:29.8]} 14.
Rxd4 {[%clk 0:02:40.9]} 14... Qc7 {[%clk 0:02:28.1]} 15. Nc3 {[%clk 0:02:39.2]}
15... Rac8 {[%clk 0:02:26.9]} 16. Nb5 {[%clk 0:02:16.3]} 16... Qc2 {[%clk
0:02:21]} 17. Qxc2 {[%clk 0:01:46.3]} 17... Rxc2 {[%clk 0:02:19.1]} 18. Ne1
{[%clk 0:01:46.9]} 18... Rc5 {[%clk 0:01:08.8]} 19. Bxb7 {[%clk 0:01:30.4]}
19... Rxb5 {[%clk 0:01:08.1]} 20. Bc6 {[%clk 0:01:22.2]} 20... Re5 {[%clk
0:01:04.8]} 21. Bxd7 {[%clk 0:01:20]} 21... Rxe2 {[%clk 0:00:56.8]} 22. Bb5
{[%clk 0:01:12.6]} 22... Rb2 {[%clk 0:00:55.1]} 23. Nf3 {[%clk 0:01:01.1]} 23...
h5 {[%clk 0:00:52.2]} 24. Rd2 {[%clk 0:01:00.5]} 24... Rxd2 {[%clk 0:00:47.8]}
25. Nxd2 {[%clk 0:01:01.4]} 25... Rc8 {[%clk 0:00:46.9]} 26. Bc4 {[%clk
0:00:59.2]} 26... Ng4 {[%clk 0:00:42.1]} 27. f4 {[%clk 0:00:56.7]} 27... Ne3
{[%clk 0:00:39.9]} 28. a4 {[%clk 0:00:52.5]} 28... e6 {[%clk 0:00:33.2]} 29. Kf2
{[%clk 0:00:50.9]} 29... Nf5 {[%clk 0:00:31.1]} 30. Nf3 {[%clk 0:00:45.9]} 30...
Rc5 {[%clk 0:00:30]} 31. Rd1 {[%clk 0:00:43.6]} 1-0

[Event "*** Titled Tuesday Blitz"]
[Site "Chess.com"]
[Date "2020.12.01"]
[Round "8"]
[White "eCztery"]
[Black "Ajedrez_con_German"]
[Result "1/2-1/2"]
[WhiteElo "2347"]
[BlackElo "2460"]
[TimeControl "180+1"]
[EndTime "11:25:45 PST"]
[Termination "Game drawn by repetition"]

1. e4 {[%clk 0:02:55.6]} 1... e5 {[%clk 0:02:59]} 2. Nf3 {[%clk 0:02:49.7]} 2...
Nc6 {[%clk 0:02:57.9]} 3. d4 {[%clk 0:02:48.4]} 3... exd4 {[%clk 0:02:57.2]} 4.
Bc4 {[%clk 0:02:47.8]} 4... Nf6 {[%clk 0:02:50.2]} 5. O-O {[%clk 0:02:39.8]}
5... Nxe4 {[%clk 0:02:49]} 6. Nc3 {[%clk 0:02:39.3]} 6... Nxc3 {[%clk
0:02:10.4]} 7. bxc3 {[%clk 0:02:38.9]} 7... Be7 {[%clk 0:01:59.3]} 8. cxd4
{[%clk 0:02:32.7]} 8... d5 {[%clk 0:01:54.9]} 9. Bb5 {[%clk 0:02:33]} 9... O-O
{[%clk 0:01:50.4]} 10. Bxc6 {[%clk 0:02:32.8]} 10... bxc6 {[%clk 0:01:49.7]} 11.
Ne5 {[%clk 0:02:33.7]} 11... Bd7 {[%clk 0:01:46.6]} 12. Re1 {[%clk 0:02:29.6]}
12... f6 {[%clk 0:01:39.9]} 13. Nd3 {[%clk 0:02:29.3]} 13... Bf5 {[%clk
0:01:29.8]} 14. a4 {[%clk 0:02:19.1]} 14... Re8 {[%clk 0:01:23.8]} 15. h3 {[%clk
0:02:05.1]} 15... Bd6 {[%clk 0:01:22.8]} 16. Ba3 {[%clk 0:02:02.7]} 16... Rxe1+
{[%clk 0:01:16.6]} 17. Nxe1 {[%clk 0:02:03.6]} 17... Qe7 {[%clk 0:01:11.4]} 18.
Bxd6 {[%clk 0:01:55.5]} 18... cxd6 {[%clk 0:01:07.9]} 19. Ra3 {[%clk 0:01:55.4]}
19... Re8 {[%clk 0:01:04.6]} 20. Re3 {[%clk 0:01:49.5]} 20... Qd7 {[%clk
0:01:03.5]} 21. Qe2 {[%clk 0:01:49.6]} 21... Rxe3 {[%clk 0:00:59.9]} 22. Qxe3
{[%clk 0:01:50.5]} 22... Qe6 {[%clk 0:00:52.4]} 23. Qc3 {[%clk 0:01:47.7]} 23...
Qe2 {[%clk 0:00:41.4]} 24. Kh2 {[%clk 0:01:39.5]} 24... Qc4 {[%clk 0:00:22.9]}
25. Qa5 {[%clk 0:01:34.8]} 25... Qxd4 {[%clk 0:00:12.3]} 26. Nf3 {[%clk
0:01:32.6]} 26... Qf4+ {[%clk 0:00:11.1]} 27. Kg1 {[%clk 0:01:33]} 27... Qc1+
{[%clk 0:00:09.7]} 28. Kh2 {[%clk 0:01:33.2]} 28... Qf4+ {[%clk 0:00:08.3]} 29.
Kg1 {[%clk 0:01:32.7]} 29... Be4 {[%clk 0:00:07.6]} 30. Qd8+ {[%clk 0:01:23.2]}
30... Kf7 {[%clk 0:00:07.7]} 31. Qd7+ {[%clk 0:01:24.1]} 31... Kf8 {[%clk
0:00:05.9]} 32. Nd4 {[%clk 0:01:21.8]} 32... Qc1+ {[%clk 0:00:05]} 33. Kh2
{[%clk 0:01:22.3]} 33... Qf4+ {[%clk 0:00:05.2]} 34. Kg1 {[%clk 0:01:22.8]}
34... Qc1+ {[%clk 0:00:05.5]} 35. Kh2 {[%clk 0:01:22.7]} 35... Qf4+ {[%clk
0:00:05.8]} 36. Kg1 {[%clk 0:01:21.1]} 1/2-1/2

[Event "*** Titled Tuesday Blitz"]
[Site "Chess.com"]
[Date "2020.12.01"]
[Round "8"]
[White "andrzej"]
[Black "Nachsueb"]
[Result "1-0"]
[WhiteElo "2361"]
[BlackElo "2185"]
[TimeControl "180+1"]
[EndTime "11:25:45 PST"]
[Termination "andrzej won by resignation"]

1. e4 {[%clk 0:03:00.9]} 1... e6 {[%clk 0:02:59.6]} 2. d4 {[%clk 0:03:00]} 2...
d5 {[%clk 0:03:00]} 3. Nc3 {[%clk 0:03:00.1]} 3... Bb4 {[%clk 0:02:59.3]} 4. e5
{[%clk 0:03:00]} 4... c5 {[%clk 0:02:59.5]} 5. a3 {[%clk 0:03:00.6]} 5... Bxc3+
{[%clk 0:02:59.5]} 6. bxc3 {[%clk 0:03:01.5]} 6... Ne7 {[%clk 0:02:59.9]} 7. Qg4
{[%clk 0:03:00.8]} 7... Qc7 {[%clk 0:03:00]} 8. Bd3 {[%clk 0:02:56.5]} 8... cxd4
{[%clk 0:02:54.2]} 9. Ne2 {[%clk 0:02:56.5]} 9... h5 {[%clk 0:02:29.4]} 10. Qh4
{[%clk 0:02:32.5]} 10... dxc3 {[%clk 0:02:16.6]} 11. f4 {[%clk 0:02:09.3]} 11...
Nbc6 {[%clk 0:02:07.4]} 12. O-O {[%clk 0:02:08.6]} 12... Bd7 {[%clk 0:02:06.8]}
13. a4 {[%clk 0:02:02.8]} 13... O-O-O {[%clk 0:02:04.8]} 14. Ba3 {[%clk
0:02:01.4]} 14... Ng6 {[%clk 0:01:52.7]} 15. Qf2 {[%clk 0:01:54.6]} 15... h4
{[%clk 0:01:40.1]} 16. a5 {[%clk 0:01:44.7]} 16... Be8 {[%clk 0:01:16.8]} 17.
Bc5 {[%clk 0:01:33.4]} 17... Kb8 {[%clk 0:01:07.5]} 18. Rfb1 {[%clk 0:01:33.3]}
18... d4 {[%clk 0:00:48.8]} 19. Nxd4 {[%clk 0:01:28.7]} 19... Ncxe5 {[%clk
0:00:27]} 20. Bxa7+ {[%clk 0:01:15.7]} 20... Ka8 {[%clk 0:00:26.6]} 21. fxe5
{[%clk 0:01:11]} 21... Nxe5 {[%clk 0:00:25.1]} 22. Bb6 {[%clk 0:01:04.9]} 22...
Qd6 {[%clk 0:00:22.8]} 23. a6 {[%clk 0:00:49.2]} 23... h3 {[%clk 0:00:13.7]} 24.
axb7+ {[%clk 0:00:48.3]} 24... Kxb7 {[%clk 0:00:13.7]} 25. Bc5+ {[%clk
0:00:46.4]} 1-0

[Event "*** Titled Tuesday Blitz"]
[Site "Chess.com"]
[Date "2020.12.01"]
[Round "8"]
[White "ehrenfeld"]
[Black "scoopbh"]
[Result "1-0"]
[WhiteElo "2478"]
[BlackElo "2089"]
[TimeControl "180+1"]
[EndTime "11:25:46 PST"]
[Termination "ehrenfeld won by resignation"]

1. e4 {[%clk 0:03:00.9]} 1... c5 {[%clk 0:02:57.4]} 2. Nc3 {[%clk 0:03:00.2]}
2... Nc6 {[%clk 0:02:57.5]} 3. Bb5 {[%clk 0:02:59.6]} 3... Nd4 {[%clk
0:02:49.8]} 4. Nf3 {[%clk 0:02:59.4]} 4... e6 {[%clk 0:02:29.7]} 5. O-O {[%clk
0:02:58.1]} 5... a6 {[%clk 0:02:26]} 6. Bd3 {[%clk 0:02:57.2]} 6... Ne7 {[%clk
0:02:17.7]} 7. Nxd4 {[%clk 0:02:50.6]} 7... cxd4 {[%clk 0:02:18]} 8. Ne2 {[%clk
0:02:51]} 8... d5 {[%clk 0:02:10.8]} 9. e5 {[%clk 0:02:50.5]} 9... Nc6 {[%clk
0:02:07.1]} 10. f4 {[%clk 0:02:49.7]} 10... Nb4 {[%clk 0:02:02.9]} 11. Kh1
{[%clk 0:02:27.2]} 11... Nxd3 {[%clk 0:01:58.5]} 12. cxd3 {[%clk 0:02:27]} 12...
Bc5 {[%clk 0:01:58.6]} 13. Nxd4 {[%clk 0:02:26.3]} 13... O-O {[%clk 0:01:51.9]}
14. Nf3 {[%clk 0:02:25.9]} 14... d4 {[%clk 0:01:49.7]} 15. b3 {[%clk 0:02:22.3]}
15... b5 {[%clk 0:01:47.3]} 16. Bb2 {[%clk 0:02:21.9]} 16... Bb7 {[%clk
0:01:47.7]} 17. Rc1 {[%clk 0:02:21.4]} 17... Qd5 {[%clk 0:01:45.8]} 18. Qe2
{[%clk 0:02:20.1]} 18... Rac8 {[%clk 0:01:43.3]} 19. h3 {[%clk 0:02:15.1]} 19...
a5 {[%clk 0:01:39]} 20. Kh2 {[%clk 0:02:08.6]} 20... a4 {[%clk 0:01:38.9]} 21.
b4 {[%clk 0:01:44.7]} 21... Bxb4 {[%clk 0:01:30.1]} 22. Bxd4 {[%clk 0:01:37.4]}
22... Qxa2 {[%clk 0:01:24.1]} 23. Rb1 {[%clk 0:01:26]} 23... Bxf3 {[%clk
0:01:09.5]} 24. Qxf3 {[%clk 0:01:19.3]} 24... Qxd2 {[%clk 0:00:37.3]} 25. Rfd1
{[%clk 0:01:16.8]} 25... Qa2 {[%clk 0:00:19.8]} 26. Rxb4 {[%clk 0:01:16.1]}
26... Rc2 {[%clk 0:00:20.3]} 27. Rxb5 {[%clk 0:01:14]} 27... a3 {[%clk
0:00:19.9]} 28. Rdb1 {[%clk 0:01:11.5]} 28... Rd2 {[%clk 0:00:10.8]} 29. Rb8
{[%clk 0:01:04.2]} 29... g6 {[%clk 0:00:11]} 30. Bc5 {[%clk 0:00:58.4]} 30...
Rxb8 {[%clk 0:00:05.9]} 31. Rxb8+ {[%clk 0:00:57.7]} 1-0